fUSD/lending_fUSD_20251002
["ID","MTS","AMOUNT","RATE_DAILY","PERIOD"]
[388799832,1759363855984,-500.0,0.00022191,2]
[388799834,1759363855993,-1980.5,0.00022191,2]
[388799836,1759363856003,-500.0,0.00022191,2]
[388799838,1759363856013,-500.0,0.00022191,2]
[388799840,1759363856023,-1011.45,0.00022191,2]
[388799842,1759363856033,-6333.94,0.00022191,2]
[388799844,1759363856044,-2135.23,0.00022191,2]
[388799846,1759363856053,-500.0,0.00022191,2]
[388799848,1759363856062,-1481.41,0.00022191,2]
[388799850,1759363856071,-500.0,0.00022191,2]
[388799852,1759363856083,-500.0,0.00022191,2]
[388799854,1759363856097,-6361.97,0.00022191,2]
[388799856,1759363856107,-7127.56,0.00022191,2]
[388799858,1759363856117,-2401.7,0.00022191,2]
[388799859,1759363856127,-5620.07,0.00022191,2]
[388799861,1759363856137,-861.69,0.00022191,2]
[388799863,1759363856150,-500.0,0.00022191,2]
[388799866,1759363856160,-2105.7,0.00022191,2]
[388799867,1759363856169,-500.0,0.00022191,2]
[388799869,1759363856179,-500.0,0.00022191,2]
[388799871,1759363856187,-3218.79,0.00022191,2]
[388799874,1759363856196,-500.0,0.00022191,2]
[388799876,1759363856206,-906.18,0.00022191,2]
[388799878,1759363856216,-2236.3,0.00022191,2]
[388799880,1759363856228,-13269.4,0.00022191,2]
[388799882,1759363856237,-1741.67,0.00022191,2]
[388799883,1759363856246,-500.0,0.00022191,2]
[388799885,1759363856255,-572.56,0.00022191,2]
[388799887,1759363856267,-500.0,0.00022191,2]
[388799889,1759363856277,-779.18,0.00022191,2]
[388799891,1759363856286,-2488.84,0.00022191,2]
[388799893,1759363856295,-6310.75,0.00022191,2]
[388799895,1759363856304,-3138.97,0.00022191,2]
[388799897,1759363856313,-2970.04,0.00022191,2]
[388799899,1759363856322,-1544.74,0.00022191,2]
[388799901,1759363856331,-684.91,0.00022191,2]
[388799903,1759363856340,-685.3,0.00022191,2]
[388799905,1759363856349,-1229.3,0.00022191,2]
[388799907,1759363856358,-2316.28,0.00022191,2]
[388799909,1759363856368,-500.0,0.00022191,2]
[388799911,1759363856377,-500.0,0.00022191,2]
[388799913,1759363856386,-5871.4,0.00022191,2]
[388799915,1759363856395,-500.0,0.00022191,2]
[388799917,1759363856404,-500.0,0.00022191,2]
[388799919,1759363856413,-151.65,0.00022192,2]
[388799920,1759363856422,-300.77,0.00022192,2]
[388799922,1759363856431,-194.96,0.00022192,2]
[388799925,1759363856440,-772.03148603,0.00022215,2]
[388799926,1759363856449,-154.90970295,0.00022228,2]
[388799928,1759363856458,-200.0,0.00022285,2]
[388799930,1759363856467,-151.0,0.0002229,2]
[388799932,1759363856477,-150.0,0.00022329,2]
[388799934,1759363856486,-167.76902518,0.00022349,2]
[388799936,1759363856495,-154.90970295,0.00022365,2]
[388799938,1759363856504,-163.97879068,0.00022365,2]
[388799941,1759363856516,-1184.52752387,0.00022464,10]
[388799943,1759363856526,-500.0,0.00022464,2]
[388799945,1759363856535,-522.13,0.00022464,2]
[388799947,1759363856544,-582.35,0.00022464,2]
[388799949,1759363856554,-786.49,0.00022464,2]
[388799951,1759363856563,-1169.16,0.00022464,2]
[388799952,1759363856572,-500.0,0.00022464,2]
[388799954,1759363856581,-500.0,0.00022464,2]
[388799956,1759363856591,-500.0,0.00022464,2]
[388799958,1759363856600,-500.0,0.00022464,2]
[388799959,1759363856610,-500.0,0.00022464,2]
[388799960,1759363856619,-500.0,0.00022464,2]
[388799961,1759363856628,-3701.22,0.00022464,2]
[388799962,1759363856637,-4102.69,0.00022464,2]
[388799963,1759363856646,-3062.94,0.00022464,2]
[388799964,1759363856656,-2799.51,0.00022464,2]
[388799965,1759363856665,-4376.66,0.00022464,2]
[388799966,1759363856674,-9832.52,0.00022464,2]
[388799967,1759363856683,-8584.99,0.00022464,2]
[388799968,1759363856692,-6991.62,0.00022464,2]
[388799969,1759363856701,-5044.73,0.00022464,2]
[388799971,1759363856711,-2463.14,0.00022464,2]
[388799973,1759363856720,-2194.54,0.00022464,2]
[388799975,1759363856729,-1868.45,0.00022464,2]
[388799977,1759363856738,-11118.42,0.00022464,2]
[388799979,1759363856748,-2426.49,0.00022464,2]
[388799981,1759363856756,-792.68,0.00022464,2]
[388799983,1759363856767,-1908.8,0.00022464,2]
[388799985,1759363856776,-2586.95,0.00022464,2]
[388799987,1759363856786,-1526.29,0.00022465,2]
[388799988,1759363856795,-622.73,0.00022465,2]
[388799990,1759363856804,-500.0,0.00022465,2]
[388799992,1759363856815,-500.0,0.00022465,2]
[388799994,1759363856824,-500.0,0.00022465,2]
[388799996,1759363856833,-500.0,0.00022465,2]
[388799998,1759363856842,-500.0,0.00022465,2]
[388800000,1759363856851,-500.0,0.00022465,2]
[388800002,1759363856860,-500.0,0.00022465,2]
[388800004,1759363856870,-500.0,0.00022465,2]
[388800006,1759363856879,-500.0,0.00022465,2]
[388800008,1759363856888,-590.6,0.00022465,2]
[388800010,1759363856897,-565.99,0.00022465,2]
[388800012,1759363856907,-500.0,0.00022465,2]
[388800014,1759363856917,-1098.94,0.00022465,2]
[388800016,1759363856927,-500.0,0.00022465,2]
[388800019,1759363856937,-500.0,0.00022465,2]
[388800020,1759363856950,-500.0,0.00022465,2]
[388800022,1759363856960,-1359.78,0.00022465,2]
[388800024,1759363856969,-200.0,0.00022465,2]
[388800026,1759363856979,-500.0,0.00022465,2]
[388800028,1759363856989,-500.0,0.00022465,2]
[388800030,1759363856999,-500.0,0.00022465,2]
[388800032,1759363857008,-500.0,0.00022465,2]
[388800034,1759363857021,-264.55553357,0.00022465,2]
[388800036,1759363857030,-500.0,0.00022465,2]
[388800038,1759363857040,-500.0,0.00022465,2]
[388800040,1759363857050,-500.0,0.00022465,2]
[388800042,1759363857060,-500.0,0.00022465,2]
[388800044,1759363857070,-500.0,0.00022465,2]
[388800047,1759363857080,-512.08,0.00022465,2]
[388800049,1759363857089,-213.45074862,0.00022465,2]
[388800051,1759363857099,-507.05390418,0.00022465,2]
[388800052,1759363857108,-227.18,0.00022465,2]
[388800055,1759363857120,-789.65,0.00022465,2]
[388800057,1759363857129,-500.0,0.00022465,2]
[388800059,1759363857139,-706.53,0.00022465,2]
[388800061,1759363857148,-908.26,0.00022465,2]
[388800063,1759363857158,-699.72,0.00022465,2]
[388800065,1759363857167,-500.0,0.00022465,2]
[388800080,1759363857302,-500.0,0.00022465,2]
[388800082,1759363857314,-734.75,0.00022465,2]
[388800084,1759363857324,-500.0,0.00022465,2]
[388800086,1759363857334,-567.18,0.00022465,2]
[388800088,1759363857344,-500.0,0.00022465,2]
[388800090,1759363857354,-1654.32,0.00022465,2]
[388800092,1759363857363,-500.0,0.00022465,2]
[388800094,1759363857372,-590.39,0.00022465,2]
[388800096,1759363857382,-500.0,0.00022465,2]
[388800098,1759363857391,-938.86,0.00022465,2]
[388800100,1759363857401,-1391.25,0.00022465,2]
[388800102,1759363857410,-500.0,0.00022465,2]
[388800104,1759363857420,-970.69,0.00022465,2]
[388800106,1759363857429,-500.0,0.00022465,2]
[388800108,1759363857439,-500.0,0.00022465,2]
[388800110,1759363857448,-500.0,0.00022465,2]
[388800112,1759363857457,-500.0,0.00022465,2]
[388800114,1759363857467,-1697.92,0.00022465,2]
[388800116,1759363857476,-500.0,0.00022465,2]
[388800119,1759363857487,-500.0,0.00022465,2]
[388800121,1759363857496,-500.0,0.00022465,2]
[388800123,1759363857506,-500.0,0.00022465,2]
[388800124,1759363857515,-500.0,0.00022465,2]
[388800127,1759363857526,-500.0,0.00022465,2]
[388800129,1759363857537,-368.74446801,0.00022465,2]
[388800131,1759363857546,-500.0,0.00022465,2]
[388800133,1759363857556,-1546.71,0.00022465,2]
[388800135,1759363857565,-500.0,0.00022465,2]
[388800137,1759363857574,-500.0,0.00022465,2]
[388800138,1759363857583,-1530.15,0.00022465,2]
[388800141,1759363857593,-780.71,0.00022465,2]
[388800142,1759363857602,-506.35,0.00022465,2]
[388800144,1759363857612,-1995.76,0.00022465,2]
[388800147,1759363857622,-500.0,0.00022465,2]
[388800149,1759363857631,-616.23,0.00022465,2]
[388800151,1759363857640,-1470.94,0.00022465,2]
[388800152,1759363857650,-500.0,0.00022465,2]
[388800154,1759363857660,-541.34,0.00022465,2]
[388800156,1759363857669,-1121.11,0.00022465,2]
[388800158,1759363857678,-692.67,0.00022465,2]
[388800160,1759363857687,-259.68146799,0.00022465,2]
[388800162,1759363857696,-979.02,0.00022465,2]
[388800164,1759363857706,-1169.47,0.00022465,2]
[388800166,1759363857716,-529.53,0.00022465,2]
[388800168,1759363857725,-500.0,0.00022465,2]
[388800170,1759363857735,-500.0,0.00022465,2]
[388800172,1759363857744,-500.0,0.00022465,2]
[388800174,1759363857755,-500.0,0.00022465,2]
[388800176,1759363857764,-500.0,0.00022465,2]
[388800178,1759363857774,-500.0,0.00022465,2]
[388800180,1759363857783,-895.05,0.00022465,2]
[388800182,1759363857793,-500.0,0.00022465,2]
[388800184,1759363857803,-1131.13,0.00022465,2]
[388800186,1759363857812,-622.56,0.00022465,2]
[388800188,1759363857822,-894.37,0.00022465,2]
[388800190,1759363857832,-500.0,0.00022465,2]
[388800192,1759363857841,-1513.23,0.00022465,2]
[388800194,1759363857851,-932.35,0.00022465,2]
[388800196,1759363857860,-911.0,0.00022465,2]
[388800198,1759363857869,-500.0,0.00022465,2]
[388800200,1759363857879,-500.77,0.00022465,2]
[388800202,1759363857888,-500.0,0.00022465,2]
[388800204,1759363857897,-500.0,0.00022465,2]
[388800206,1759363857907,-500.0,0.00022465,2]
[388800208,1759363857917,-839.31,0.00022465,2]
[388800210,1759363857927,-500.0,0.00022465,2]
[388800212,1759363857937,-725.74,0.00022465,2]
[388800214,1759363857950,-928.04,0.00022465,2]
[388800217,1759363857960,-629.74,0.00022465,2]
[388800219,1759363857970,-1155.02,0.00022465,2]
[388800221,1759363857979,-500.0,0.00022465,2]
[388800223,1759363857989,-2119.83,0.00022465,2]
[388800225,1759363857999,-500.0,0.00022465,2]
[388800227,1759363858008,-2561.27,0.00022465,2]
[388800229,1759363858022,-1050.05,0.00022465,2]
[388800231,1759363858031,-639.33,0.00022465,2]
[388800233,1759363858040,-500.0,0.00022465,2]
[388800235,1759363858050,-500.0,0.00022465,2]
[388800237,1759363858059,-930.37,0.00022465,2]
[388800238,1759363858069,-500.0,0.00022465,2]
[388800241,1759363858079,-613.41,0.00022465,2]
[388800243,1759363858088,-500.0,0.00022465,2]
[388800245,1759363858097,-503.32,0.00022465,2]
[388800247,1759363858106,-500.0,0.00022465,2]
[388800249,1759363858115,-1742.53,0.00022465,2]
[388800251,1759363858124,-500.0,0.00022465,2]
[388800253,1759363858135,-500.0,0.00022465,2]
[388800255,1759363858144,-1000.44,0.00022465,2]
[388800257,1759363858154,-1029.47,0.00022465,2]
[388800259,1759363858163,-500.0,0.00022465,2]
[388800261,1759363858172,-937.02,0.00022465,2]
[388800263,1759363858182,-502.5316602,0.00022465,2]
[388800265,1759363858191,-1811.3,0.00022465,2]
[388800267,1759363858200,-2170.86,0.00022465,2]
[388800269,1759363858212,-2020.34,0.00022465,2]
[388800271,1759363858221,-500.0,0.00022465,2]
[388800273,1759363858230,-1034.92,0.00022465,2]
[388800275,1759363858240,-500.0,0.00022465,2]
[388800277,1759363858249,-2023.61,0.00022465,2]
[388800279,1759363858259,-500.0,0.00022465,2]
[388800281,1759363858271,-500.0,0.00022465,2]
[388800283,1759363858281,-500.0,0.00022465,2]
[388800285,1759363858290,-500.0,0.00022465,2]
[388800287,1759363858300,-500.0,0.00022465,2]
[388800289,1759363858310,-500.0,0.00022465,2]
[388800291,1759363858319,-2126.47,0.00022465,2]
[388800293,1759363858328,-500.0,0.00022465,2]
[388800296,1759363858339,-500.0,0.00022465,2]
[388800298,1759363858348,-955.4,0.00022465,2]
[388800300,1759363858357,-500.0,0.00022465,2]
[388800302,1759363858367,-999.63,0.00022465,2]
[388800303,1759363858376,-500.0,0.00022465,2]
[388800306,1759363858385,-500.0,0.00022465,2]
[388800308,1759363858395,-847.79,0.00022465,2]
[388800310,1759363858404,-2264.82,0.00022465,2]
[388800312,1759363858414,-929.82,0.00022465,2]
[388800313,1759363858423,-1553.44,0.00022465,2]
[388800315,1759363858433,-2226.48,0.00022465,2]
[388800317,1759363858443,-1410.82,0.00022465,2]
[388800320,1759363858452,-2635.63,0.00022465,2]
[388800322,1759363858462,-2120.95,0.00022465,2]
[388800323,1759363858471,-937.66,0.00022465,2]
[388800325,1759363858481,-500.0,0.00022465,2]
[388800328,1759363858490,-500.0,0.00022465,2]
[388800330,1759363858499,-190.27756329,0.00022465,2]
[388800332,1759363858510,-2551.82,0.00022465,2]
[388800334,1759363858521,-500.0,0.00022465,2]
[388800336,1759363858531,-1688.27,0.00022465,2]
[388800338,1759363858541,-500.0,0.00022465,2]
[388800340,1759363858551,-500.0,0.00022465,2]
[388800342,1759363858560,-500.0,0.00022465,2]
[388800344,1759363858570,-500.0,0.00022465,2]
[388800346,1759363858580,-906.22,0.00022465,2]
[388800348,1759363858590,-741.23,0.00022465,2]
[388800350,1759363858599,-500.0,0.00022465,2]
[388800352,1759363858608,-1605.07,0.00022465,2]
[388800354,1759363858618,-2092.57,0.00022465,2]
[388800356,1759363858627,-2200.1,0.00022465,2]
[388800358,1759363858637,-4521.34,0.00022465,2]
[388800360,1759363858647,-612.72,0.00022465,2]
[388800362,1759363858658,-500.0,0.00022465,2]
[388800364,1759363858667,-822.08,0.00022465,2]
[388800366,1759363858676,-500.0,0.00022465,2]
[388800368,1759363858686,-1474.35,0.00022465,2]
[388800370,1759363858695,-1753.23,0.00022465,2]
[388800372,1759363858705,-1894.7,0.00022465,2]
[388800374,1759363858715,-554.14,0.00022465,2]
[388800376,1759363858724,-500.0,0.00022465,2]
[388800377,1759363858734,-1655.33,0.00022465,2]
[388800378,1759363858744,-2289.62,0.00022465,2]
[388800379,1759363858753,-1274.81,0.00022465,2]
[388800380,1759363858764,-1500.31,0.00022465,2]
[388800381,1759363858776,-340.54944294,0.00022465,2]
[388800382,1759363858786,-869.07,0.00022465,2]
[388800383,1759363858797,-1692.88,0.00022465,2]
[388800384,1759363858808,-500.0,0.00022465,2]
[388800386,1759363858818,-500.0,0.00022465,2]
[388800388,1759363858828,-1654.6,0.00022465,2]
[388800390,1759363858838,-2919.82,0.00022465,2]
[388800392,1759363858847,-500.0,0.00022465,2]
[388800394,1759363858857,-1655.49,0.00022465,2]
[388800396,1759363858866,-500.0,0.00022465,2]
[388800398,1759363858876,-500.0,0.00022465,2]
[388800400,1759363858886,-500.0,0.00022465,2]
[388800402,1759363858896,-500.0,0.00022465,2]
[388800403,1759363858906,-354.13978805,0.00022465,2]
[388800406,1759363858916,-1487.93,0.00022465,2]
[388800407,1759363858925,-711.17,0.00022465,2]
[388800409,1759363858935,-1051.93,0.00022465,2]
[388800411,1759363858948,-2299.48,0.00022465,2]
[388800413,1759363858957,-467.57236485,0.00022465,2]
[388800415,1759363858967,-679.43,0.00022465,2]
[388800417,1759363858977,-672.71,0.00022465,2]
[388800419,1759363858988,-1457.27,0.00022465,2]
[388800421,1759363858997,-2523.21,0.00022465,2]
[388800423,1759363859006,-1897.92,0.00022465,2]
[388800425,1759363859018,-5038.69,0.00022465,2]
[388800427,1759363859027,-500.0,0.00022465,2]
[388800429,1759363859037,-500.0,0.00022465,2]
[388800431,1759363859047,-1328.52,0.00022465,2]
[388800433,1759363859057,-2550.41,0.00022465,2]
[388800435,1759363859067,-310.47259726,0.00022465,2]
[388800437,1759363859077,-522.92,0.00022465,2]
[388800439,1759363859086,-1021.17,0.00022465,2]
[388800441,1759363859095,-2110.31,0.00022465,2]
[388800443,1759363859105,-1487.27,0.00022465,2]
[388800445,1759363859114,-886.47,0.00022465,2]
[388800447,1759363859124,-806.02,0.00022465,2]
[388800450,1759363859134,-1885.44,0.00022465,2]
[388800452,1759363859144,-805.28,0.00022465,2]
[388800454,1759363859153,-1746.98,0.00022465,2]
[388800455,1759363859162,-1535.57,0.00022465,2]
[388800457,1759363859172,-1151.68,0.00022465,2]
[388800459,1759363859182,-1901.46,0.00022465,2]
[388800462,1759363859191,-1640.81,0.00022465,2]
[388800464,1759363859201,-1155.62,0.00022465,2]
[388800466,1759363859211,-500.0,0.00022465,2]
[388800467,1759363859220,-2903.24,0.00022465,2]
[388800470,1759363859230,-2297.96,0.00022465,2]
[388800471,1759363859239,-339.73849151,0.00022465,2]
[388800473,1759363859249,-500.0,0.00022465,2]
[388800476,1759363859258,-2266.58,0.00022465,2]
[388800478,1759363859269,-1816.6,0.00022465,2]
[388800480,1759363859279,-4762.2,0.00022465,2]
[388800482,1759363859289,-500.0,0.00022465,2]
[388800484,1759363859299,-1205.6,0.00022465,2]
[388800486,1759363859308,-500.0,0.00022465,2]
[388800488,1759363859317,-500.0,0.00022465,2]
[388800489,1759363859327,-500.0,0.00022465,2]
[388800492,1759363859337,-581.74,0.00022465,2]
[388800493,1759363859347,-500.0,0.00022465,2]
[388800495,1759363859356,-1459.92,0.00022465,2]
[388800497,1759363859366,-1156.66,0.00022465,2]
[388800499,1759363859375,-1717.17,0.00022465,2]
[388800501,1759363859384,-912.22,0.00022465,2]
[388800535,1759363859691,-1873.46,0.00022465,2]
[388800537,1759363859706,-500.0,0.00022465,2]
[388800539,1759363859716,-799.86,0.00022465,2]
[388800541,1759363859726,-917.27,0.00022465,2]
[388800543,1759363859736,-600.18,0.00022465,2]
[388800545,1759363859746,-2201.82,0.00022465,2]
[388800547,1759363859756,-756.18,0.00022465,2]
[388800549,1759363859766,-500.0,0.00022465,2]
[388800551,1759363859776,-1507.82,0.00022465,2]
[388800553,1759363859786,-2227.03,0.00022465,2]
[388800555,1759363859796,-1007.69,0.00022465,2]
[388800557,1759363859805,-310.48975412,0.00022465,2]
[388800559,1759363859816,-500.0,0.00022465,2]
[388800561,1759363859825,-1759.22,0.00022465,2]
[388800563,1759363859835,-1337.38,0.00022465,2]
[388800565,1759363859846,-500.0,0.00022465,2]
[388800567,1759363859855,-694.25,0.00022465,2]
[388800569,1759363859866,-663.67,0.00022465,2]
[388800571,1759363859876,-364.54,0.00022465,2]
[388800574,1759363859886,-1148.03,0.00022465,2]
[388800576,1759363859895,-1353.89,0.00022465,2]
[388800578,1759363859905,-500.0,0.00022465,2]
[388800580,1759363859915,-506.65,0.00022465,2]
[388800582,1759363859925,-1775.86,0.00022465,2]
[388800584,1759363859935,-500.0,0.00022465,2]
[388800585,1759363859949,-500.0,0.00022465,2]
[388800588,1759363859959,-192.82520281,0.00022465,2]
[388800606,1759363860493,-532.85479719,0.00022465,2]
[388800607,1759363860503,-1250.63,0.00022465,2]
[388800608,1759363860513,-2129.92,0.00022465,2]
[388800609,1759363860523,-500.0,0.00022465,2]
[388800610,1759363860533,-500.0,0.00022465,2]
[388800611,1759363860543,-500.0,0.00022465,2]
[388800612,1759363860553,-500.0,0.00022465,2]
[388800613,1759363860562,-500.0,0.00022465,2]
[388800614,1759363860572,-500.0,0.00022465,2]
[388800615,1759363860581,-796.13,0.00022465,2]
[388800616,1759363860590,-1895.59,0.00022465,2]
[388800617,1759363860599,-903.68,0.00022465,2]
[388800618,1759363860608,-500.0,0.00022465,2]
[388800619,1759363860617,-2456.34,0.00022465,2]
[388800620,1759363860626,-824.95,0.00022465,2]
[388800621,1759363860635,-807.17,0.00022465,2]
[388800622,1759363860644,-500.0,0.00022465,2]
[388800623,1759363860653,-1137.6,0.00022465,2]
[388800624,1759363860662,-213.40109504,0.00022465,2]
[388800625,1759363860672,-500.0,0.00022465,2]
[388800626,1759363860681,-1898.68,0.00022465,2]
[388800627,1759363860691,-500.0,0.00022465,2]
[388800628,1759363860701,-593.48,0.00022465,2]
[388800629,1759363860710,-1223.87,0.00022465,2]
[388800631,1759363860720,-500.0,0.00022465,2]
[388800633,1759363860729,-1574.64363947,0.00022465,2]
[388800636,1759363860760,-500.0,0.00022191,2]
[388800638,1759363860771,-376.29636053,0.00022465,2]
[388800640,1759363860781,-1232.62039622,0.00022465,2]
[388800642,1759363860792,-398.03960378,0.00022465,2]
[388800644,1759363860802,-775.7,0.00022465,2]
[388800646,1759363860811,-1080.17,0.00022465,2]
[388800648,1759363860821,-500.0,0.00022465,2]
[388800650,1759363860831,-500.0,0.00022465,2]
[388800651,1759363860840,-1442.63,0.00022465,2]
[388800652,1759363860849,-544.12,0.00022465,2]
[388800653,1759363860859,-1432.97,0.00022465,2]
[388800654,1759363860869,-582.02,0.00022465,2]
[388800655,1759363860878,-500.76716712,0.00022465,2]
[388800657,1759363861622,-459.22283288,0.00022465,2]
[388800658,1759363861631,-906.07,0.00022465,2]
[388800659,1759363861641,-557.08904612,0.00022465,2]
[388800660,1759363861730,-221.85614265,0.00022465,2]
[388800661,1759363861741,-935.0,0.00022465,2]
[388800662,1759363861750,-3956.28,0.00022465,2]
[388800663,1759363861759,-500.0,0.00022465,2]
[388800664,1759363861768,-500.0,0.00022465,2]
[388800665,1759363861778,-178.75813085,0.00022465,2]
[388800666,1759363861849,-2746.231,0.00022465,2]
[388800667,1759363861860,-2139.99086915,0.00022465,2]
[388800668,1759363861870,-500.0,0.00022465,2]
[388800669,1759363861879,-100.35913085,0.00022465,2]
[388800670,1759363862524,-424.84,0.00021907,2]
[388800671,1759363862534,-1051.9194,0.00021917,2]
[388800672,1759363862545,-2187.58540001,0.00021917,2]
[388800673,1759363862556,-761.16995493,0.00021917,2]
[388800674,1759363862653,-1090.6,0.00021917,2]
[388800678,1759364243845,161.51,0.00010492,2]
[388800692,1759364754487,17287.13958438,0.0001659,2]
[388800693,1759364780484,4000.0,0.000234,60]
[388800937,1759365031751,-156.59843748,0.000169,2]
[388800938,1759365031761,-500.67187423,0.00016973,2]
[388800939,1759365031770,-439.445197,0.00016983,2]
[388800940,1759365031781,-153.37938638,0.00016983,2]
[388800941,1759365031790,-816.33593583,0.00016983,2]
[388800942,1759365031799,-1200.0,0.00016998,2]
[388800943,1759365031809,-180.0,0.00016998,2]
[388800944,1759365031818,-10357.4209,0.00016999,5]
[388800945,1759365031827,-300.0,0.00016999,2]
[388800946,1759365031836,-220.0,0.00016999,2]
[388800947,1759365031845,-500.0,0.00016999,2]
[388800948,1759365031854,-500.0,0.00016999,2]
[388800949,1759365031864,-490.68625046,0.00016999,2]
[388800950,1759365031875,-152.78060833,0.00016999,2]
[388800951,1759365031885,-437.17376601,0.00016999,2]
[388800952,1759365031894,-183.17370879,0.00016999,2]
[388800953,1759365031903,-178.18608201,0.00016999,2]
[388800954,1759365031912,-500.0,0.00016999,2]
[388800955,1759365031922,-231.70036977,0.00016999,2]
[388800956,1759365031931,-299.38122649,0.00016999,2]
[388800957,1759365031939,-95057.18571713,0.00017,2]
[388800958,1759365031950,-5969.4635,0.00017,2]
[388800969,1759365032150,-4101.64692344,0.00017,2]
[388800992,1759365037500,-59569.99999999,0.00017,2]
[388800999,1759365037557,-1147.47350923,0.00017,2]
[388801004,1759365037615,-353.47052981,0.00017,2]
[388801205,1759365039575,-2679.54158766,0.00017,2]
[388801218,1759365039689,-969567.95797503,0.00017,2]
[388801220,1759365039698,-567787.75981707,0.00017,2]
[388801222,1759365039707,-4457867.81390996,0.00017,2]
[388801233,1759365039802,-1376.26749287,0.00017,2]
[388801542,1759365042726,-356.92881,0.000169,2]
[388801597,1759365043211,-316.220239,0.000169,2]
[388801851,1759365045676,-1681.60582096,0.000169,2]
[388801853,1759365045685,-2354.75486992,0.00016911,2]
[388801855,1759365045695,-500.0,0.00016999,2]
[388801858,1759365045704,-3205.25489124,0.00017,2]
[388801860,1759365045717,-1932.74970002,0.00017,2]
[388801862,1759365045735,-291.69939956,0.00017,2]
[388801866,1759365045764,-567.29271618,0.00017,2]
[388801887,1759365045969,-588.67499985,0.00017,2]
[388802679,1759365353513,60000.0,0.0003,120]
[388802717,1759365517795,188.5,0.00028519,120]
[388802790,1759366149754,-400.03,0.00016755,2]
[388802791,1759366153443,-180.74,0.00016755,2]
[388802794,1759366231891,-169.36205487,0.00016755,2]
[388802795,1759366231900,-200.0,0.000168,6]
[388802796,1759366231910,-184.63476195,0.00016892,2]
[388802797,1759366231919,-293.87652273,0.000169,6]
[388802798,1759366231931,-206.12347727,0.000169,6]
[388802799,1759366231942,-167.17938243,0.000169,2]
[388802800,1759366231951,-426.48261789,0.000169,2]
[388802801,1759366231960,-163.97879068,0.000169,2]
[388802802,1759366231969,-1883.80389599,0.000169,2]
[388802803,1759366231978,-1058.0,0.00016987,2]
[388802804,1759366231987,-1200.0,0.00016989,2]
[388802805,1759366231996,-341.34339612,0.0001699,2]
[388802806,1759366232006,-151.0,0.0001699,2]
[388802807,1759366232015,-151.0,0.0001699,2]
[388802808,1759366232024,-500.0,0.0001699,2]
[388802809,1759366232033,-151.0,0.0001699,2]
[388802810,1759366232042,-500.0,0.0001699,2]
[388802811,1759366232051,-151.0,0.0001699,2]
[388802812,1759366232060,-151.0,0.0001699,2]
[388802813,1759366232070,-399.75520322,0.0001699,2]
[388802814,1759366232109,-100.24479678,0.0001699,2]
[388802815,1759366232118,-151.0,0.0001699,2]
[388802816,1759366232127,-335.270618,0.0001699,2]
[388802817,1759366232138,-164.729382,0.0001699,2]
[388802818,1759366232147,-151.0,0.0001699,2]
[388802819,1759366232157,-151.0,0.0001699,2]
[388802821,1759366232167,-274.74838278,0.0001699,2]
[388802823,1759366232178,-225.25161722,0.0001699,2]
[388802825,1759366232187,-151.0,0.0001699,2]